fUST/lending_fUST_20240814
["ID","MTS","AMOUNT","RATE_DAILY","PERIOD"]
[334851193,1723609322062,-153.0,0.00011791,2]
[334851194,1723609322723,-147.0,0.00011791,2]
[334851195,1723609322749,-6.0,0.00011792,2]
[334851198,1723609323408,-114.37336231,0.00011792,2]
[334851199,1723609323433,-38.62663769,0.00011792,2]
[334851200,1723609324090,-114.37336231,0.00011792,2]
[334851201,1723609324115,-38.62663769,0.00011792,2]
[334851208,1723609325527,-114.37336231,0.00011792,2]
[334851209,1723609325550,-38.62663769,0.00011792,2]
[334851210,1723609326281,-114.37336231,0.00011792,2]
[334851211,1723609326304,-38.62663769,0.00011792,2]
[334851218,1723609329125,-153.0,9.9e-05,2]
[334851225,1723609329918,-120.37336231,9.9e-05,2]
[334851226,1723609329943,-32.62663769,0.00011792,2]
[334851238,1723609334148,-153.0,0.00011784,2]
[334851241,1723609335491,-25.0,0.00011784,2]
[334851242,1723609335518,-128.0,0.00011784,2]
[334851259,1723609340971,-50.0,0.00011784,2]
[334851261,1723609341184,-103.0,0.00011784,2]
[334851274,1723609345192,273.37336231,9.9e-05,2]
[334851331,1723609363067,-273.37336231,9.9e-05,2]
[334851407,1723609376966,-273.37336231,9.9e-05,2]
[334851434,1723609383600,-435.90258523,9.9e-05,2]
[334851473,1723609394783,-273.37336231,9.9e-05,2]
[334851518,1723609411621,-273.37336231,9.9e-05,2]
[334851566,1723609429374,-273.37336231,9.9e-05,2]
[334851617,1723609444907,-273.37336231,9.9e-05,2]
[334851660,1723609466101,-273.37336231,9.9e-05,2]
[334851715,1723609490519,-273.37336231,9.9e-05,2]
[334851730,1723609494799,-213.8986779,9.999e-05,2]
[334851741,1723609498902,-213.8986779,9.899e-05,2]
[334851794,1723609516290,-273.37336231,9.9e-05,2]
[334851837,1723609531998,-273.37336231,9.9e-05,2]
[334851868,1723609547469,-273.37336231,9.9e-05,2]
[334851909,1723609562856,-273.37336231,9.9e-05,2]
[334851946,1723609578533,-273.37336231,9.9e-05,2]
[334851953,1723609582948,-848.13795687,9.999e-05,2]
[334851990,1723609595887,-273.37336231,9.9e-05,2]
[334851997,1723609600301,460.0,0.00025,60]
[334852019,1723609610578,-273.37336231,9.9e-05,2]
[334852042,1723609621767,-810.20806679,9.999e-05,2]
[334852060,1723609631946,-273.37336231,9.9e-05,2]
[334852091,1723609649619,-273.37336231,9.9e-05,2]
[334852134,1723609667690,-273.37336231,9.9e-05,2]
[334852183,1723609686564,-273.37336231,9.9e-05,2]
[334852232,1723609704875,-273.37336231,9.9e-05,2]
[334852278,1723609723196,-273.37336231,9.9e-05,2]
[334852579,1723609832482,-810.20806679,9.899e-05,2]
[334852581,1723609832492,-810.20806679,9.999e-05,2]
[334852582,1723609832502,-219.0,0.00011713,2]
[334852584,1723609832511,-219.0,0.00011713,2]
[334852586,1723609832522,-219.0,0.00011713,2]
[334852587,1723609832532,-219.0,0.00011713,2]
[334852588,1723609832542,-219.0,0.00011713,2]
[334852589,1723609832551,-9.74056496,0.00011713,2]
[334852591,1723609832563,-209.25943504,0.00011713,2]
[334852592,1723609832572,-219.0,0.00011713,2]
[334852593,1723609832581,-219.0,0.00011713,2]
[334852594,1723609832591,-219.0,0.00011713,2]
[334852595,1723609832600,-219.0,0.00011713,2]
[334852597,1723609832609,-219.0,0.00011713,2]
[334852599,1723609832619,-219.0,0.00011713,2]
[334852601,1723609832628,-219.0,0.00011713,2]
[334852603,1723609832639,-219.0,0.00011713,2]
[334852605,1723609832648,-219.0,0.00011713,2]
[334852607,1723609832657,-219.0,0.00011713,2]
[334852608,1723609832666,-211.289118,0.00011713,2]
[334852610,1723609832679,-7.710882,0.00011713,2]
[334852612,1723609832688,-219.0,0.00011713,2]
[334852615,1723609832698,-219.0,0.00011713,2]
[334852618,1723609832708,-219.0,0.00011713,2]
[334852619,1723609832717,-203.779118,0.00011713,2]
[334852622,1723609832729,-15.220882,0.00011713,2]
[334852625,1723609832738,-219.0,0.00011713,2]
[334852626,1723609832748,-219.0,0.00011713,2]
[334852627,1723609832757,-219.0,0.00011713,2]
[334852628,1723609832766,-219.0,0.00011713,2]
[334852629,1723609832775,-149.83322157,0.00011713,2]
[334852664,1723609838736,-69.16677843,0.00011713,2]
[334852666,1723609838746,-219.0,0.00011713,2]
[334852668,1723609838756,-219.0,0.00011713,2]
[334852670,1723609838765,-219.0,0.00011713,2]
[334852672,1723609838775,-219.0,0.00011713,2]
[334852674,1723609838785,-219.0,0.00011713,2]
[334852676,1723609838795,-219.0,0.00011713,2]
[334852678,1723609838805,-153.0,0.00011718,2]
[334852680,1723609838814,-153.0,0.00011718,2]
[334852682,1723609838824,-153.0,0.00011718,2]
[334852684,1723609838833,-153.0,0.00011718,2]
[334852686,1723609838843,-153.0,0.00011718,2]
[334852688,1723609838853,-153.0,0.00011718,2]
[334852690,1723609838862,-153.0,0.00011718,2]
[334852692,1723609838872,-153.0,0.00011718,2]
[334852694,1723609838882,-153.0,0.00011718,2]
[334852696,1723609838892,-153.0,0.00011718,2]
[334852698,1723609838902,-153.0,0.00011718,2]
[334852700,1723609838911,-175.23131538,0.00012,2]
[334852702,1723609838921,-647.80190619,0.00012143,2]
[334852704,1723609838934,-1062.88692949,0.00012143,2]
[334852709,1723609838973,-19648.05948652,0.00012143,2]
[334852711,1723609838983,-500.0,0.00012837,2]
[334852713,1723609838996,-500.0,0.00012986,2]
[334852715,1723609839005,-207.3931713,0.00013,2]
[334852717,1723609839014,-153.0,0.00013,2]
[334852719,1723609839024,-267.9126531,0.00013,2]
[334852721,1723609839035,-600.0,0.0001315,2]
[334852723,1723609839045,-4474.81229342,0.00013193,2]
[334852725,1723609839054,-294.8038627,0.000132,2]
[334852727,1723609839066,-465.33559236,0.00013214,2]
[334852729,1723609839077,-600.0,0.00013287,2]
[334852731,1723609839087,-2003.83259381,0.000133,3]
[334852733,1723609839096,-150.0,0.00013304,2]
[334852735,1723609839106,-1343.97167313,0.00013361,2]
[334852904,1723609840746,-949.31672427,0.00013361,2]
[334852906,1723609840756,-919.26377573,0.00013372,2]
[334853130,1723609843043,-80.73622427,0.00013372,2]
[334853132,1723609843053,-1000.0,0.00013396,2]
[334853134,1723609843063,-1000.0,0.00013401,2]
[334853136,1723609843075,-300.0,0.00013417,2]
[334853139,1723609843085,-600.0,0.00013424,2]
[334853142,1723609843095,-1000.0,0.00013457,2]
[334853144,1723609843105,-1000.0,0.00013461,2]
[334853147,1723609843114,-1000.0,0.00013477,2]
[334853150,1723609843124,-502.97612625,0.00013479,2]
[334853153,1723609843134,-770.95554435,0.00013485,2]
[334853156,1723609843146,-209.03745788,0.00013509,2]
[334853159,1723609843156,-1000.0,0.00013518,2]
[334853161,1723609843165,-1000.0,0.00013527,2]
[334853164,1723609843174,-1000.0,0.00013559,2]
[334853167,1723609843184,-601.62691923,0.00013561,2]
[334853170,1723609843193,-1000.0,0.00013566,2]
[334853172,1723609843202,-1000.0,0.00013567,2]
[334853175,1723609843212,-4665.42350667,0.00013576,2]
[334853177,1723609843221,-999.65854941,0.00013587,2]
[334853180,1723609843230,-999.65854938,0.0001359,2]
[334853183,1723609843240,-30260.44825705,0.0001359,2]
[334853186,1723609843251,-999.65854938,0.00013593,2]
[334853189,1723609843261,-999.65854938,0.00013595,2]
[334853192,1723609843272,-999.65854938,0.00013598,2]
[334853195,1723609843282,-985.11496389,0.00013598,2]
[334853197,1723609843292,-602.0,0.000136,2]
[334853199,1723609843302,-1000.0,0.00013602,2]
[334853201,1723609843311,-547.64201947,0.00013608,2]
[334853203,1723609843320,-1000.0,0.00013616,2]
[334853205,1723609843330,-203.52286462,0.00013642,2]
[334853207,1723609843339,-5989.19475674,0.00013642,2]
[334853209,1723609843348,-1413.0,0.00013651,2]
[334853211,1723609843358,-150.0,0.00013651,2]
[334853213,1723609843367,-150.0,0.00013655,2]
[334853215,1723609843376,-150.0,0.00013655,2]
[334853217,1723609843385,-150.0,0.00013655,2]
[334853218,1723609843395,-150.0,0.00013655,2]
[334853221,1723609843415,-300.16562388,0.00013669,2]
[334853223,1723609843425,-200.0,0.00013673,2]
[334853225,1723609843436,-200.0,0.00013673,2]
[334853227,1723609843445,-200.0,0.00013673,2]
[334853229,1723609843455,-57232.5947463,0.00013677,2]
[334853231,1723609843465,-1084.9,0.00013687,2]
[334853233,1723609843475,-1084.9,0.00013687,2]
[334853235,1723609843485,-1084.9,0.00013687,2]
[334853237,1723609843495,-1084.9,0.00013687,2]
[334853239,1723609843506,-1084.9,0.00013687,2]
[334853241,1723609843516,-1084.9,0.00013687,2]
[334853243,1723609843526,-1084.9,0.00013687,2]
[334853245,1723609843536,-1084.9,0.00013687,2]
[334853247,1723609843545,-1084.9,0.00013687,2]
[334853249,1723609843555,-1296.37341751,0.00013688,2]
[334853251,1723609843565,-15842.20681681,0.00013688,2]
[334860049,1723610035304,-273.37336231,9.9e-05,2]
[334860064,1723610051305,-273.37336231,9.9e-05,2]
[334860081,1723610072418,-273.37336231,9.9e-05,2]
[334860108,1723610094524,-273.37336231,9.9e-05,2]
[334860139,1723610116674,-273.37336231,9.9e-05,2]
[334860150,1723610134240,-273.37336231,9.9e-05,2]
[334860172,1723610156818,-273.37336231,9.9e-05,2]
[334860181,1723610167145,-273.37336231,9.9e-05,2]
[334860192,1723610182943,-273.37336231,9.9e-05,2]
[334860207,1723610199051,-273.37336231,9.9e-05,2]
[334860217,1723610208883,-157.95166393,9.999e-05,2]
[334860221,1723610216649,-273.37336231,9.9e-05,2]
[334860228,1723610220566,-524.27403594,9.999e-05,2]
[334860235,1723610231913,-273.37336231,9.9e-05,2]
[334860236,1723610231937,-27.92243304,9.999e-05,2]
[334860244,1723610235068,-273.37336231,9.999e-05,2]
[334860255,1723610247316,-273.37336231,9.9e-05,2]
[334860270,1723610264509,-273.37336231,9.9e-05,2]
[334860281,1723610279412,-273.37336231,9.9e-05,2]
[334860294,1723610295373,-273.37336231,9.9e-05,2]
[334860305,1723610310657,-273.37336231,9.9e-05,2]
[334860320,1723610327467,-273.37336231,9.9e-05,2]
[334860327,1723610342771,-273.37336231,9.9e-05,2]
[334860340,1723610362695,-273.37336231,9.9e-05,2]
[334860349,1723610378188,-273.37336231,9.9e-05,2]
[334860661,1723610393425,-273.37336231,9.9e-05,2]
[334861851,1723610453964,-168.6142548,9.9e-05,2]
[334862456,1723610609290,-273.37336231,9.9e-05,2]
[334862495,1723610624525,-273.37336231,9.9e-05,2]
[334862555,1723610641710,-273.37336231,9.9e-05,2]
[334862604,1723610658404,-273.37336231,9.9e-05,2]
[334862679,1723610683383,-273.37336231,9.9e-05,2]
[334862725,1723610701949,-273.37336231,9.9e-05,2]
[334862753,1723610713172,269.7721501,9.999e-05,7]
[334862774,1723610716675,-273.37336231,9.9e-05,2]
[334862830,1723610734083,-273.37336231,9.9e-05,2]
[334862901,1723610757358,-273.37336231,9.9e-05,2]
[334862949,1723610772760,-273.37336231,9.9e-05,2]
[334862982,1723610788112,-273.37336231,9.9e-05,2]
[334863020,1723610804874,-273.37336231,9.9e-05,2]
[334863029,1723610811459,-663.62277646,9.999e-05,2]
[334863030,1723610812060,269.7721501,9.999e-05,7]
[334863044,1723610820400,-273.37336231,9.9e-05,2]
[334863086,1723610836454,-273.37336231,9.9e-05,2]
[334863122,1723610853759,-273.37336231,9.9e-05,2]
[334863157,1723610871307,-273.37336231,9.9e-05,2]
[334863185,1723610884083,-182.70699478,9.999e-05,2]
[334863186,1723610884110,-239.41140802,9.999e-05,2]
[334863197,1723610888047,-182.70699478,9.899e-05,2]
[334863231,1723610900069,269.7721501,9.999e-05,7]
[334863234,1723610901810,182.70699478,9.899e-05,2]
[334863447,1723611001082,249.10443551,9.999e-05,7]
[334863559,1723611031811,-182.70699478,9.899e-05,2]
[334863561,1723611031821,-679.20515439,9.899e-05,2]
[334863563,1723611031831,-300.0,9.998e-05,2]
[334863565,1723611031840,-182.70699478,9.999e-05,2]
[334863568,1723611031850,-810.98237385,9.999e-05,2]
[334863570,1723611031859,-305.07137801,9.999e-05,2]
[334863574,1723611031877,-259.11872918,9.999e-05,2]
[334863576,1723611031886,-258.09199854,9.999e-05,2]
[334863578,1723611031896,-416.7972276,0.00011852,2]
[334863580,1723611031906,-1410.00876508,0.00011999,2]
[334863582,1723611031916,-168.6142548,0.00012123,2]
[334863584,1723611031925,-502.97612625,0.00012837,2]
[334863586,1723611031934,-527.7799145,0.000129,2]
[334863588,1723611031943,-500.0,0.00012986,2]
[334863590,1723611031953,-268.0002184,0.00013,2]
[334863592,1723611031963,-294.8038627,0.00013,2]
[334863594,1723611031973,-207.3931713,0.00013,2]
[334863596,1723611031982,-153.0,0.00013,2]
[334863597,1723611031991,-153.0,0.00013,2]
[334863599,1723611032001,-268.0002184,0.00013,2]
[334863601,1723611032010,-294.8038627,0.00013,2]
[334863603,1723611032019,-207.3931713,0.00013,2]
[334863605,1723611032029,-306.0,0.00013,2]
[334863607,1723611032039,-294.8038627,0.00013,2]
[334863609,1723611032048,-268.0002184,0.00013,2]
[334863611,1723611032058,-294.8038627,0.00013,2]
[334863613,1723611032067,-268.0002184,0.00013,2]
[334863615,1723611032077,-294.8038627,0.00013,2]
[334863617,1723611032086,-268.0002184,0.00013,2]
[334863619,1723611032095,-268.0002184,0.00013,2]
[334863621,1723611032105,-294.8038627,0.00013,2]
[334863623,1723611032114,-294.8038627,0.00013,2]
[334863625,1723611032123,-268.0002184,0.00013,2]
[334863627,1723611032133,-294.8038627,0.00013,2]
[334863629,1723611032142,-600.0,0.0001315,2]
[334863631,1723611032153,-601.62691923,0.00013287,2]
[334863633,1723611032163,-5324.10913299,0.00013338,2]
[334863634,1723611032175,-294.8038627,0.000134,2]
[334863635,1723611032184,-268.0002184,0.000134,2]
[334863637,1723611032194,-153.0,0.000134,2]
[334863639,1723611032204,-294.8038627,0.000134,2]
[334863640,1723611032214,-153.0,0.000134,2]
[334863642,1723611032225,-268.0002184,0.000134,2]
[334863644,1723611032236,-153.0,0.000134,2]
[334863646,1723611032247,-153.0,0.000134,2]
[334863648,1723611032257,-153.0,0.000134,2]
[334863651,1723611032270,-294.8038627,0.000134,2]
[334863653,1723611032280,-267.9801969,0.000134,2]
[334863654,1723611032291,-529.490083,0.000134,2]
[334863655,1723611032302,-268.0002184,0.000134,2]
[334863656,1723611032311,-207.3931713,0.000134,2]
[334863657,1723611032321,-306.0,0.000134,2]
[334863658,1723611032331,-153.0,0.000134,2]
[334863659,1723611032342,-153.0,0.00013425,2]
[334863660,1723611032356,-207.3931713,0.00013425,2]
[334863661,1723611032366,-307.6604179,0.00013425,2]
[334863662,1723611032376,-207.3931713,0.00013425,2]
[334863663,1723611032386,-153.0,0.00013425,2]
[334863664,1723611032398,-153.0,0.00013425,2]
[334863665,1723611032409,-207.3931713,0.00013425,2]
[334863666,1723611032420,-153.0,0.00013425,2]
[334863667,1723611032433,-153.0,0.00013425,2]
[334863668,1723611032443,-207.3931713,0.00013425,2]
[334863669,1723611032454,-153.0,0.00013425,2]
[334863670,1723611032464,-207.3931713,0.00013425,2]
[334863671,1723611032475,-1000.0,0.00013447,2]
[334863672,1723611032484,-674.66494916,0.00013467,2]
[334863725,1723611037813,-305.32805307,0.00013467,2]
[334863728,1723611037826,-87.83290601,0.00013496,2]
[334863733,1723611037867,-912.16709399,0.00013496,2]
[334863735,1723611037878,-547.64201947,0.00013507,2]
[334863737,1723611037888,-1000.0,0.00013511,2]
[334863739,1723611037899,-300.16562388,0.00013562,2]
[334863741,1723611037911,-1000.0,0.00013569,2]
[334863743,1723611037922,-13521.11669025,0.0001359,2]
[334863983,1723611040312,-16739.3315668,0.0001359,2]
[334863986,1723611040323,-999.65854941,0.00013596,2]
[334863988,1723611040334,-999.65854938,0.00013597,2]
[334863990,1723611040345,-999.65854938,0.00013597,2]
[334863992,1723611040358,-999.65854938,0.00013598,2]
[334863994,1723611040368,-999.65854938,0.00013598,2]
[334863996,1723611040381,-985.11496389,0.00013598,2]
[334863998,1723611040391,-10004.424012,0.000136,2]
[334864000,1723611040402,-150.0,0.00013651,2]
[334864002,1723611040411,-520.0,0.00013651,2]
[334864004,1723611040422,-1413.0,0.00013651,2]
[334864007,1723611040433,-1000.0,0.00013665,2]
[334864009,1723611040445,-200.0,0.00013673,2]
[334864011,1723611040455,-200.0,0.00013673,2]
[334864013,1723611040464,-200.0,0.00013673,2]
[334864015,1723611040474,-200.0,0.00013673,2]
[334864017,1723611040484,-1296.37341751,0.00013678,2]
[334864019,1723611040493,-112608.87528472,0.00013678,2]
[334864244,1723611043192,-273.37336231,9.9e-05,2]
[334864245,1723611043207,-1317.52610563,0.00013678,2]
[334864247,1723611043224,-9433.8582315,0.00013678,2]
[334864248,1723611043341,-20024.89775999,0.00013678,2]
[334865001,1723611259224,10000.0,0.00025,60]
[334865258,1723612231858,-422.1184028,9.899e-05,2]
[334865260,1723612231870,-132.19364657,9.999e-05,2]
[334865712,1723612240047,-289.92475623,9.999e-05,2]
[334865713,1723612240057,-200.0,0.00010959,2]
[334865714,1723612240067,-200.0,0.00010959,2]
[334865715,1723612240077,-200.0,0.00010959,2]
[334865716,1723612240086,-200.0,0.00010959,2]
[334865718,1723612240096,-200.0,0.00010959,2]
[334865720,1723612240106,-200.0,0.00010959,2]
[334865722,1723612240115,-200.0,0.00010959,2]
[334865724,1723612240125,-200.0,0.00010959,2]
[334865726,1723612240134,-200.0,0.00010959,2]
[334865728,1723612240143,-200.0,0.00010959,2]
[334865730,1723612240153,-200.0,0.00010959,2]
[334865732,1723612240162,-200.0,0.00010959,2]
[334865734,1723612240172,-200.0,0.00010959,2]
[334865736,1723612240181,-200.0,0.00010959,2]
[334865738,1723612240191,-379.0,0.00010959,2]
[334865740,1723612240200,-379.0,0.00010959,2]
[334865742,1723612240211,-379.0,0.00010959,2]
[334865744,1723612240221,-379.0,0.00010959,2]
[334865746,1723612240231,-379.0,0.00010959,2]
[334865748,1723612240241,-379.0,0.00010959,2]
[334865749,1723612240250,-379.0,0.00010959,2]
[334865750,1723612240259,-379.0,0.00010959,2]
[334865751,1723612240268,-379.0,0.00010959,2]
[334865752,1723612240278,-379.0,0.00010959,2]
[334865753,1723612240287,-379.0,0.00010959,2]
[334865754,1723612240297,-379.0,0.00010959,2]
[334865755,1723612240306,-379.0,0.00010959,2]
[334865756,1723612240315,-379.0,0.00010959,2]
[334865757,1723612240324,-200.0,0.00010959,2]
[334865758,1723612240334,-200.0,0.00010959,2]
[334865759,1723612240343,-200.0,0.00010959,2]
[334865760,1723612240353,-200.0,0.00010959,2]
[334865761,1723612240363,-200.0,0.00010959,2]
[334865762,1723612240372,-200.0,0.00010959,2]
[334865763,1723612240382,-200.0,0.00010959,2]
[334865764,1723612240391,-200.0,0.00010959,2]
[334865765,1723612240401,-200.0,0.00010959,2]
[334865766,1723612240411,-200.0,0.00010959,2]
[334865767,1723612240420,-200.0,0.00010959,2]
[334865768,1723612240429,-200.0,0.00010959,2]
[334865769,1723612240439,-200.0,0.00010959,2]
[334865770,1723612240448,-200.0,0.00010959,2]
[334865771,1723612240459,-379.0,0.00010959,2]
[334865772,1723612240469,-379.0,0.00010959,2]
[334865773,1723612240479,-379.0,0.00010959,2]
[334865774,1723612240488,-379.0,0.00010959,2]
[334865775,1723612240498,-379.0,0.00010959,2]
[334865776,1723612240508,-379.0,0.00010959,2]
[334865777,1723612240518,-379.0,0.00010959,2]
[334865778,1723612240528,-379.0,0.00010959,2]
[334865779,1723612240537,-379.0,0.00010959,2]
[334865780,1723612240547,-379.0,0.00010959,2]
[334865781,1723612240556,-379.0,0.00010959,2]
[334865782,1723612240566,-379.0,0.00010959,2]
[334865783,1723612240575,-379.0,0.00010959,2]
[334865784,1723612240584,-379.0,0.00010959,2]
[334865785,1723612240593,-200.0,0.00010959,2]
[334865786,1723612240603,-200.0,0.00010959,2]
[334865787,1723612240612,-200.0,0.00010959,2]
[334865788,1723612240622,-200.0,0.00010959,2]
[334865789,1723612240633,-200.0,0.00010959,2]
[334865790,1723612240643,-200.0,0.00010959,2]
[334865791,1723612240655,-200.0,0.00010959,2]
[334865792,1723612240665,-200.0,0.00010959,2]
[334865793,1723612240676,-200.0,0.00010959,2]
[334865794,1723612240688,-200.0,0.00010959,2]
[334865795,1723612240698,-200.0,0.00010959,2]
[334865796,1723612240711,-200.0,0.00010959,2]
[334865797,1723612240728,-200.0,0.00010959,2]
[334865798,1723612240899,-200.0,0.00010959,2]
[334865799,1723612240910,-379.0,0.00010959,2]
[334865800,1723612240919,-379.0,0.00010959,2]
[334865801,1723612240930,-379.0,0.00010959,2]
[334865802,1723612240942,-379.0,0.00010959,2]
[334865803,1723612240953,-379.0,0.00010959,2]
[334865804,1723612240965,-379.0,0.00010959,2]
[334865805,1723612240975,-379.0,0.00010959,2]
[334865806,1723612240986,-379.0,0.00010959,2]
[334865807,1723612240997,-379.0,0.00010959,2]
[334865808,1723612241009,-379.0,0.00010959,2]
[334865809,1723612241020,-379.0,0.00010959,2]
[334865810,1723612241031,-379.0,0.00010959,2]
[334865811,1723612241043,-379.0,0.00010959,2]
[334865812,1723612241053,-379.0,0.00010959,2]
[334865813,1723612241062,-200.0,0.00010959,2]
[334865814,1723612241072,-200.0,0.00010959,2]
[334865815,1723612241083,-200.0,0.00010959,2]
[334865816,1723612241094,-200.0,0.00010959,2]
[334865817,1723612241105,-200.0,0.00010959,2]
[334865818,1723612241116,-200.0,0.00010959,2]
[334865819,1723612241126,-200.0,0.00010959,2]
[334865820,1723612241137,-200.0,0.00010959,2]
[334865821,1723612241149,-200.0,0.00010959,2]
[334865822,1723612241158,-200.0,0.00010959,2]
[334865823,1723612241168,-200.0,0.00010959,2]
[334865824,1723612241177,-200.0,0.00010959,2]
[334865825,1723612241186,-200.0,0.00010959,2]
[334865826,1723612241195,-200.0,0.00010959,2]
[334865827,1723612241206,-379.0,0.00010959,2]
[334865828,1723612241218,-379.0,0.00010959,2]
[334865829,1723612241227,-379.0,0.00010959,2]
[334865830,1723612241237,-379.0,0.00010959,2]
[334865831,1723612241247,-379.0,0.00010959,2]
[334865832,1723612241258,-379.0,0.00010959,2]
[334865833,1723612241268,-379.0,0.00010959,2]
[334865834,1723612241279,-379.0,0.00010959,2]
[334865835,1723612241289,-379.0,0.00010959,2]
[334865836,1723612241301,-379.0,0.00010959,2]
[334865837,1723612241310,-379.0,0.00010959,2]
[334865838,1723612241320,-379.0,0.00010959,2]
[334865839,1723612241330,-379.0,0.00010959,2]
[334865840,1723612241341,-379.0,0.00010959,2]
[334865841,1723612241351,-2168.0130953,0.00011677,2]
[334865842,1723612241362,-500.0,0.00012986,2]
[334865843,1723612241373,-298.37089832,0.00013153,2]
[334865844,1723612241384,-465.01677962,0.0001318,2]
[334865845,1723612241393,-5324.10913299,0.00013228,2]
[334865846,1723612241403,-306.0,0.000133,2]
[334865847,1723612241412,-206.311487,0.000133,2]
[334865848,1723612241422,-294.8038627,0.000133,2]
[334865849,1723612241432,-306.0,0.000133,2]
[334865850,1723612241442,-268.0002184,0.000133,2]
[334865851,1723612241452,-153.0,0.000133,2]
[334865852,1723612241465,-153.0,0.000133,2]
[334865853,1723612241474,-207.3665351,0.000133,2]
[334865854,1723612241483,-153.0,0.00013425,2]
[334865855,1723612241493,-153.0,0.00013425,2]
[334865856,1723612241503,-153.0,0.00013425,2]
[334865857,1723612241512,-153.0,0.000135,2]
[334865858,1723612241521,-153.0,0.000135,2]
[334865859,1723612241533,-1084.9,0.00013589,2]
[334865860,1723612241543,-16739.3315668,0.0001359,2]
[334865861,1723612241553,-999.65854941,0.00013596,2]
[334865862,1723612241562,-999.65854938,0.00013597,2]
[334865863,1723612241572,-999.65854938,0.00013597,2]
[334865864,1723612241582,-999.65854938,0.00013598,2]
[334865865,1723612241591,-999.65854938,0.00013598,2]
[334865866,1723612241601,-985.11496389,0.00013598,2]
[334865867,1723612241611,-150.0,0.00013651,2]
[334865868,1723612241622,-150.0,0.00013651,2]
[334865869,1723612241632,-150.0,0.00013651,2]
[334865870,1723612241642,-150.0,0.00013651,2]
[334865871,1723612241653,-150.0,0.00013651,2]
[334865872,1723612241662,-520.0,0.00013651,2]
[334865873,1723612241671,-1413.0,0.00013651,2]
[334865874,1723612241682,-1084.9,0.00013668,2]
[334865875,1723612241691,-1084.9,0.00013668,2]
[334865876,1723612241701,-1084.9,0.00013668,2]
[334865877,1723612241712,-1084.9,0.00013668,2]
[334865878,1723612241723,-200.0,0.00013673,2]
[334865879,1723612241735,-200.0,0.00013673,2]
[334865880,1723612241746,-200.0,0.00013673,2]
[334865881,1723612241756,-200.0,0.00013673,2]
[334865882,1723612241767,-53257.1777384,0.00013678,2]
[334865883,1723612241779,-1084.9,0.00013686,2]
[334865884,1723612241790,-5989.19475674,0.00013687,2]
[334865885,1723612241802,-203.52286462,0.00013687,2]
[334865886,1723612241814,-1084.9,0.00013687,2]
[334865887,1723612241823,-1084.9,0.00013687,2]
[334865888,1723612241833,-1084.9,0.00013687,2]
[334865889,1723612241843,-1296.37341751,0.00013688,2]
[334865890,1723612241853,-9670.3871713,0.00013688,2]
[334865935,1723612243309,-3220.493395,0.00013688,2]
[334865936,1723612243321,-6075.10224,0.00013688,2]
[334866394,1723613542297,2000.0,0.0001,7]
[334866422,1723614210048,298.37089832,5.29e-06,2]
[334866423,1723614210164,4728.4115303,3.18e-06,2]
[334866424,1723614210497,4728.4115303,8.02e-06,2]
[334866425,1723614210818,4728.41153032,1.044e-05,2]
[334866435,1723614423302,150.0,0.0001,10]
[334866474,1723614632239,-313.20484941,8.91e-05,2]
[334866476,1723614632250,-313.20484941,9e-05,2]
[334866477,1723614632260,-30.49908934,9.999e-05,2]
[334866539,1723614638574,-124.48052173,9.999e-05,2]
[334866540,1723614638585,-209.70730432,9.999e-05,2]
[334866541,1723614638594,-2950.121699,0.0001,2]
[334866542,1723614638607,-300.0,0.00010999,2]
[334866543,1723614638618,-185.0,0.00010999,2]
[334866544,1723614638627,-562.75071606,0.00011,7]